fUST/lending_fUST_20250615
["ID","MTS","AMOUNT","RATE_DAILY","PERIOD"]
[365834533,1749949839474,-460.0,0.00022191,4]
[365834535,1749949839483,-460.0,0.00022191,4]
[365834537,1749949839492,-460.0,0.00022191,4]
[365834539,1749949839501,-460.0,0.00022191,4]
[365834541,1749949839511,-460.0,0.00022191,4]
[365834543,1749949839522,-460.0,0.00022191,4]
[365834545,1749949839531,-460.0,0.00022191,4]
[365834547,1749949839541,-460.0,0.00022191,4]
[365834549,1749949839551,-1029.92,0.00022191,4]
[365834551,1749949839561,-692.2,0.00022191,4]
[365834553,1749949839570,-460.0,0.00022191,4]
[365834555,1749949839579,-460.0,0.00022191,4]
[365834557,1749949839590,-494.45,0.00022191,4]
[365834559,1749949839599,-1084.72,0.00022191,4]
[365834561,1749949839608,-460.0,0.00022191,4]
[365834563,1749949839618,-460.0,0.00022191,4]
[365834565,1749949839627,-728.99,0.00022191,4]
[365834567,1749949839638,-460.0,0.00022191,4]
[365834569,1749949839648,-2505.84,0.00022191,4]
[365834571,1749949839658,-176.46763862,0.00022191,4]
[365834573,1749949839668,-460.0,0.00022191,4]
[365834575,1749949839677,-824.9,0.00022191,4]
[365834577,1749949839687,-460.0,0.00022191,4]
[365834579,1749949839696,-460.0,0.00022191,4]
[365834581,1749949839706,-460.0,0.00022191,4]
[365834583,1749949839715,-2144.81,0.00022191,4]
[365834585,1749949839724,-460.0,0.00022191,4]
[365834587,1749949839734,-961.72,0.00022191,4]
[365834589,1749949839743,-684.28,0.00022191,4]
[365834591,1749949839752,-460.0,0.00022191,4]
[365834593,1749949839762,-2119.92,0.00022191,4]
[365834595,1749949839771,-2389.01,0.00022191,4]
[365834597,1749949839780,-347.60761814,0.00022191,4]
[365834599,1749949839789,-1266.83,0.00022191,4]
[365834601,1749949839798,-640.81,0.00022191,4]
[365834603,1749949839808,-222.27280839,0.00022191,4]
[365834605,1749949839818,-595.89,0.00022191,4]
[365834607,1749949839827,-2043.55001345,0.0002221,6]
[365834609,1749949839838,-500.0,0.00022227,2]
[365834611,1749949839848,-496.32736655,0.00022227,2]
[365834613,1749949839857,-500.0,0.00022227,2]
[365834615,1749949839866,-500.0,0.0002223,2]
[365834617,1749949839876,-500.0,0.00022246,2]
[365834619,1749949839885,-600.0,0.0002225,2]
[365834621,1749949839894,-500.0,0.00022277,2]
[365834623,1749949839903,-500.0,0.00022277,2]
[365834625,1749949839912,-2043.55001345,0.00022314,7]
[365834627,1749949839922,-500.0,0.00022336,2]
[365834629,1749949839931,-1952.81804408,0.00022365,2]
[365834630,1749949839940,-2615.71948741,0.00022365,2]
[365834852,1749949842947,-460.0,0.00021917,4]
[365834853,1749949842961,-430.0,0.00021917,4]
[365834854,1749949842971,-460.0,0.00022191,4]
[365834855,1749949842980,-8182.8592555,0.00022365,2]
[365834856,1749949842990,-500.0,0.00022369,2]
[365834857,1749949843001,-500.0,0.00022369,2]
[365834858,1749949843010,-500.0,0.00022369,2]
[365834859,1749949843019,-500.0,0.00022369,2]
[365834860,1749949843029,-500.0,0.00022369,2]
[365834861,1749949843039,-229.80585427,0.00022377,2]
[365834862,1749949843048,-500.0,0.00022377,2]
[365834864,1749949843058,-438.93185736,0.00022377,2]
[365834866,1749949843068,-500.0,0.00022377,2]
[365834869,1749949843077,-500.0,0.00022377,2]
[365834872,1749949843087,-500.0,0.00022377,2]
[365834875,1749949843097,-594.5523253,0.00022377,2]
[365834876,1749949843106,-500.0,0.00022377,2]
[365834879,1749949843115,-2043.55001345,0.00022417,7]
[365834880,1749949843125,-444.0,0.00022429,2]
[365834882,1749949843135,-63.19486375,0.00022437,2]
[365835974,1749950276324,185.360357,0.00013699,2]
[365835979,1749950462079,155.00007186,0.00024999,60]
[365835988,1749950834116,-242.7375764,0.0001972,2]
[365835989,1749950836244,-184.04546535,0.0001972,2]
[365835990,1749950836267,-269.41122651,0.00020127,2]
[365835991,1749950836289,-185.360357,0.00020187,2]
[365835992,1749950836310,-165.38119646,0.00020591,2]
[365835993,1749950836333,-987.4206551,0.00020638,2]
[365835994,1749950836353,-500.9048691,0.00020691,2]
[365835995,1749950836373,-500.0,0.00020758,2]
[365835996,1749950836397,-251.897775,0.00020934,2]
[365835997,1749950836418,-201.7417138,0.00021004,2]
[365835998,1749950836443,-580.0,0.00021497,2]
[365835999,1749950836464,-3810.72529345,0.000215,2]
[365836000,1749950852092,-153.27470655,0.000215,2]
[365836001,1749950852114,-413.08581616,0.00021745,2]
[365836003,1749950895156,-202.54773747,0.000194,2]
[365836005,1749950918513,151.0,0.0002,120]
[365836006,1749950918999,754.999999,0.00025,120]
[365836027,1749951032146,-168.82268031,0.00019206,2]
[365836028,1749951032156,-47.08879362,0.000194,2]
[365836029,1749951032166,-200.37153447,0.00020224,2]
[365836030,1749951032175,-169.689085,0.00020638,2]
[365836031,1749951032185,-169.689085,0.00020741,2]
[365836032,1749951032194,-666.0,0.0002085,2]
[365836034,1749951032204,-600.0,0.00021154,2]
[365836035,1749951032213,-174.0,0.00021478,2]
[365836037,1749951032223,-438.12804541,0.00021661,2]
[365836044,1749951032382,-910.51193256,0.00021737,2]
[365836045,1749951032396,-399.8652628,0.00021737,2]
[365836047,1749951032409,-323.81280464,0.00021737,2]
[365836049,1749951032418,-300.0,0.00021816,2]
[365836051,1749951032427,-374.64450246,0.00021817,2]
[365836053,1749951032436,-1795.94465842,0.00021817,2]
[365836055,1749951032446,-500.0,0.0002185,2]
[365836057,1749951032456,-228.0,0.00021889,2]
[365836059,1749951032469,-1688.0,0.0002189,2]
[365836061,1749951032481,-207.4,0.0002189,2]
[365836063,1749951032490,-1884.84917145,0.000219,6]
[365836065,1749951032499,-300.0,0.00021902,2]
[365836067,1749951032509,-5000.0,0.00021903,2]
[365836069,1749951032518,-151.0,0.00021903,2]
[365836071,1749951032528,-1000.0,0.00021903,2]
[365836073,1749951032537,-1000.0,0.00021903,2]
[365836075,1749951032547,-1000.0,0.00021903,2]
[365836076,1749951032558,-1000.0,0.00021903,2]
[365836079,1749951032567,-4997.48275994,0.00021903,2]
[365836081,1749951032577,-1000.0,0.00021903,2]
[365836082,1749951032586,-500.0,0.00021903,2]
[365836084,1749951032595,-1000.0,0.00021903,2]
[365836086,1749951032605,-500.0,0.00021903,2]
[365836088,1749951032614,-1000.0,0.00021903,2]
[365836090,1749951032623,-500.0,0.00021903,2]
[365836092,1749951032633,-500.0,0.00021903,2]
[365836094,1749951032642,-3.48833369,0.00021903,2]
[365836234,1749951038325,-229.79473488,0.00021903,2]
[365836236,1749951038336,-500.0,0.00021903,2]
[365836238,1749951038346,-500.0,0.00021903,2]
[365836240,1749951038357,-151.0,0.00021903,2]
[365836242,1749951038367,-500.0,0.00021903,2]
[365836244,1749951038377,-151.0,0.00021903,2]
[365836246,1749951038387,-500.0,0.00021903,2]
[365836249,1749951038398,-151.0,0.00021903,2]
[365836251,1749951038407,-500.0,0.00021903,2]
[365836253,1749951038417,-151.0,0.00021903,2]
[365836255,1749951038427,-500.0,0.00021903,2]
[365836257,1749951038436,-151.0,0.00021903,2]
[365836259,1749951038446,-500.0,0.00021903,2]
[365836261,1749951038455,-151.0,0.00021903,2]
[365836262,1749951038466,-500.0,0.00021903,2]
[365836264,1749951038475,-226.76390347,0.00021903,2]
[365836265,1749951038485,-500.0,0.00021903,2]
[365836266,1749951038495,-500.0,0.00021903,2]
[365836267,1749951038505,-500.0,0.00021903,2]
[365836268,1749951038515,-535.38675135,0.00021903,2]
[365836269,1749951038526,-893.63757,0.00021909,2]
[365836270,1749951038537,-45348.53664237,0.0002191,2]
[365836271,1749951038546,-158.26703799,0.00021916,2]
[365836272,1749951038556,-500.0,0.00021916,2]
[365836273,1749951038566,-500.0,0.00021916,2]
[365836274,1749951038576,-500.0,0.00021916,2]
[365836275,1749951038586,-500.0,0.00021916,2]
[365836276,1749951038596,-500.0,0.00021916,2]
[365836277,1749951038606,-500.0,0.00021916,2]
[365836278,1749951038616,-500.0,0.00021916,2]
[365836279,1749951038626,-500.0,0.00021916,2]
[365836280,1749951038636,-500.0,0.00021916,2]
[365836281,1749951038649,-429.18211882,0.00021916,2]
[365836282,1749951038659,-500.0,0.00021916,2]
[365836283,1749951038670,-500.0,0.00021916,2]
[365836284,1749951038681,-450.0,0.00021916,2]
[365836285,1749951038691,-500.0,0.00021917,4]
[365836286,1749951038700,-460.0,0.00021917,4]
[365836287,1749951038710,-430.0,0.00021917,4]
[365836288,1749951038720,-460.0,0.00021917,4]
[365836289,1749951038730,-505.87928417,0.00021917,4]
[365836290,1749951038739,-460.0,0.00021917,4]
[365836291,1749951038749,-460.0,0.00021917,4]
[365836292,1749951038759,-410.0,0.00021917,4]
[365836293,1749951038768,-440.0,0.00021917,4]
[365836294,1749951038778,-460.0,0.00021917,4]
[365836295,1749951038787,-460.0,0.00021917,4]
[365836296,1749951038797,-460.0,0.00021917,4]
[365836297,1749951038807,-455.59603663,0.00021917,4]
[365836298,1749951038816,-430.0,0.00021917,4]
[365836299,1749951038826,-460.0,0.00021917,4]
[365836300,1749951038836,-344.11,0.00021917,4]
[365836301,1749951038845,-400.0,0.00021917,4]
[365836302,1749951038854,-430.0,0.00021917,4]
[365836303,1749951038864,-282.57561481,0.00021917,4]
[365836304,1749951038873,-430.0,0.00021917,4]
[365836305,1749951038883,-460.0,0.00021917,4]
[365836306,1749951038897,-460.0,0.00021917,4]
[365836307,1749951038906,-460.0,0.00021917,4]
[365836308,1749951038916,-296.78,0.00021917,4]
[365836309,1749951038926,-460.0,0.00021917,4]
[365836310,1749951038935,-450.0,0.00021917,4]
[365836311,1749951038945,-460.0,0.00021917,4]
[365836312,1749951038955,-460.0,0.00021917,4]
[365836313,1749951038965,-460.0,0.00021917,4]
[365836314,1749951038975,-472.27976292,0.00021917,4]
[365836315,1749951038984,-460.0,0.00021917,4]
[365836316,1749951038994,-460.0,0.00021917,4]
[365836317,1749951039003,-460.0,0.00021917,4]
[365836318,1749951039013,-460.0,0.00021917,4]
[365836319,1749951039023,-430.0,0.00021917,4]
[365836320,1749951039033,-460.0,0.00021917,4]
[365836321,1749951039042,-460.0,0.00021917,4]
[365836322,1749951039052,-460.0,0.00021917,4]
[365836323,1749951039061,-460.0,0.00021917,4]
[365836324,1749951039071,-160.0,0.00021917,4]
[365836325,1749951039081,-460.0,0.00021917,4]
[365836326,1749951039090,-460.0,0.00021917,4]
[365836327,1749951039100,-410.0,0.00021917,4]
[365836328,1749951039109,-460.0,0.00021917,4]
[365836329,1749951039119,-430.0,0.00021917,4]
[365836330,1749951039128,-460.0,0.00021917,4]
[365836331,1749951039138,-460.0,0.00021917,4]
[365836332,1749951039148,-450.0,0.00021917,4]
[365836333,1749951039157,-460.0,0.00021917,4]
[365836334,1749951039166,-400.0,0.00021917,4]
[365836335,1749951039175,-460.0,0.00021917,4]
[365836336,1749951039185,-430.0,0.00021917,4]
[365836337,1749951039195,-430.0,0.00021917,4]
[365836338,1749951039204,-450.03230617,0.00021917,4]
[365836339,1749951039213,-460.0,0.00021917,4]
[365836340,1749951039223,-548.25653715,0.00021917,4]
[365836341,1749951039233,-460.0,0.00021917,4]
[365836342,1749951039243,-460.0,0.00021917,4]
[365836343,1749951039252,-460.0,0.00021917,4]
[365836344,1749951039264,-460.0,0.00021917,4]
[365836345,1749951039274,-460.0,0.00021917,4]
[365836346,1749951039283,-460.0,0.00021917,4]
[365836347,1749951039292,-460.0,0.00021917,4]
[365836348,1749951039302,-460.0,0.00021917,4]
[365836349,1749951039311,-460.0,0.00021917,4]
[365836350,1749951039320,-460.0,0.00021917,4]
[365836351,1749951039332,-460.0,0.00021917,4]
[365836352,1749951039342,-460.0,0.00021917,4]
[365836353,1749951039351,-460.0,0.00021917,4]
[365836354,1749951039362,-502.23042331,0.00021917,4]
[365836355,1749951039371,-430.0,0.00021917,4]
[365836356,1749951039381,-641.59,0.00021917,4]
[365836357,1749951039391,-460.0,0.00021917,4]
[365836358,1749951039400,-400.0,0.00021917,4]
[365836359,1749951039410,-460.0,0.00021917,4]
[365836360,1749951039419,-430.0,0.00021917,4]
[365836361,1749951039429,-460.0,0.00021917,4]
[365836362,1749951039441,-470.0,0.00021917,4]
[365836363,1749951039451,-460.0,0.00021917,4]
[365836364,1749951039466,-460.0,0.00021917,4]
[365836365,1749951039477,-470.0,0.00021917,4]
[365836366,1749951039488,-460.0,0.00021917,4]
[365836367,1749951039498,-470.0,0.00021917,4]
[365836368,1749951039510,-470.0,0.00021917,4]
[365836369,1749951039521,-460.0,0.00021917,4]
[365836370,1749951039540,-460.0,0.00021917,4]
[365836371,1749951039553,-374.19538542,0.00021917,4]
[365836372,1749951039563,-400.0,0.00021917,4]
[365836373,1749951039573,-460.0,0.00021917,4]
[365836374,1749951039583,-460.0,0.00021917,4]
[365836375,1749951039592,-460.0,0.00021917,4]
[365836376,1749951039601,-370.0,0.00021917,4]
[365836377,1749951039611,-460.0,0.00021917,4]
[365836378,1749951039621,-398.95049704,0.00021917,4]
[365836379,1749951039631,-460.0,0.00021917,4]
[365836380,1749951039640,-460.0,0.00021917,4]
[365836381,1749951039651,-460.0,0.00021917,4]
[365836382,1749951039660,-460.0,0.00021917,4]
[365836384,1749951039670,-460.0,0.00021917,4]
[365836385,1749951039679,-460.0,0.00021917,4]
[365836386,1749951039689,-460.0,0.00021917,4]
[365836387,1749951039698,-460.0,0.00021917,4]
[365836388,1749951039708,-460.0,0.00021917,4]
[365836389,1749951039717,-480.17217361,0.00021917,4]
[365836390,1749951039727,-460.0,0.00021917,4]
[365836391,1749951039736,-321.68518405,0.00021917,4]
[365836392,1749951039746,-460.0,0.00021917,4]
[365836393,1749951039757,-460.0,0.00021917,4]
[365836394,1749951039766,-460.0,0.00021917,4]
[365836395,1749951039776,-380.0,0.00021917,4]
[365836396,1749951039785,-460.0,0.00021917,4]
[365836397,1749951039794,-460.0,0.00021917,4]
[365836398,1749951039804,-460.0,0.00021917,4]
[365836399,1749951039813,-460.0,0.00021917,4]
[365836400,1749951039823,-460.0,0.00021917,4]
[365836401,1749951039832,-460.0,0.00021917,4]
[365836402,1749951039843,-460.0,0.00021917,4]
[365836403,1749951039852,-460.0,0.00021917,4]
[365836404,1749951039863,-460.0,0.00021917,4]
[365836405,1749951039872,-460.0,0.00021917,4]
[365836406,1749951039882,-460.0,0.00021917,4]
[365836407,1749951039894,-331.15364296,0.00021917,4]
[365836408,1749951039905,-504.06427936,0.00021917,4]
[365836409,1749951039915,-460.0,0.00021917,4]
[365836410,1749951039926,-460.0,0.00021917,4]
[365836411,1749951039935,-460.0,0.00021917,4]
[365836412,1749951039947,-460.0,0.00021917,4]
[365836413,1749951039959,-460.0,0.00021917,4]
[365836414,1749951039968,-797.87,0.00021917,4]
[365836415,1749951039978,-460.0,0.00021917,4]
[365836416,1749951039987,-257.58301212,0.00021917,4]
[365836417,1749951039997,-402.66886999,0.00021917,4]
[365836418,1749951040007,-460.0,0.00021917,4]
[365836419,1749951040017,-460.0,0.00021917,4]
[365836420,1749951040027,-460.0,0.00021917,4]
[365836421,1749951040037,-370.0,0.00021917,4]
[365836422,1749951040046,-460.0,0.00021917,4]
[365836423,1749951040056,-460.0,0.00021917,4]
[365836425,1749951040065,-460.0,0.00021917,4]
[365836427,1749951040075,-460.0,0.00021917,4]
[365836428,1749951040085,-460.0,0.00021917,4]
[365836429,1749951040094,-460.0,0.00021917,4]
[365836430,1749951040104,-460.0,0.00021917,4]
[365836431,1749951040114,-371.81984033,0.00021917,4]
[365836433,1749951040123,-421.55637079,0.00021917,4]
[365836435,1749951040132,-578.81,0.00021917,4]
[365836437,1749951040141,-460.0,0.00021917,4]
[365836439,1749951040151,-430.0,0.00021917,4]
[365836441,1749951040160,-500.0,0.00021917,4]
[365836443,1749951040170,-500.0,0.00021917,4]
[365836446,1749951040180,-500.0,0.00021917,4]
[365836447,1749951040189,-500.0,0.00021917,4]
[365836450,1749951040200,-460.0,0.00021917,4]
[365836452,1749951040211,-460.0,0.00021917,4]
[365836454,1749951040220,-460.0,0.00021917,4]
[365836456,1749951040230,-460.0,0.00021917,4]
[365836458,1749951040239,-460.0,0.00021917,4]
[365836460,1749951040249,-460.0,0.00021917,4]
[365836462,1749951040258,-679.87,0.00021917,4]
[365836464,1749951040267,-460.0,0.00021917,4]
[365836466,1749951040277,-658.34,0.00021917,4]
[365836468,1749951040286,-1943.26,0.00021917,4]
[365836470,1749951040295,-400.0,0.00021917,4]
[365836472,1749951040305,-503.84,0.00021917,4]
[365836474,1749951040315,-460.0,0.00021917,4]
[365836476,1749951040324,-809.14,0.00021917,2]
[365836478,1749951040334,-435.26812203,0.00021917,4]
[365836480,1749951040343,-460.0,0.00021917,4]
[365836482,1749951040354,-460.0,0.00021917,4]
[365836484,1749951040363,-460.0,0.00021917,4]
[365836486,1749951040372,-460.0,0.00021917,4]
[365836488,1749951040382,-460.0,0.00021917,4]
[365836490,1749951040391,-460.0,0.00021917,4]
[365836492,1749951040400,-536.5630767,0.00021917,4]
[365836494,1749951040410,-460.0,0.00021917,4]
[365836496,1749951040419,-546.23,0.00021917,4]
[365836498,1749951040428,-3020.45,0.00021917,4]
[365836500,1749951040441,-2378.72,0.00021917,4]
[365836501,1749951040449,-460.0,0.00021917,4]
[365836502,1749951040459,-460.0,0.00021917,4]
[365836503,1749951040470,-400.0,0.00021917,4]
[365836504,1749951040479,-460.0,0.00021917,4]
[365836505,1749951040488,-380.0,0.00021917,4]
[365836506,1749951040498,-460.0,0.00021917,4]
[365836507,1749951040507,-1244.48,0.00021917,4]
[365836508,1749951040656,-447.99994809,0.00021917,4]
[365836509,1749951040666,-2171.2,0.00021917,4]
[365836510,1749951040675,-460.0,0.00021917,4]
[365836511,1749951040684,-460.0,0.00021917,4]
[365836512,1749951040695,-677.12,0.00021917,4]
[365836513,1749951040704,-460.0,0.00021917,4]
[365836514,1749951040714,-778.62,0.00021917,4]
[365836515,1749951040723,-2137.88,0.00021917,4]
[365836516,1749951040732,-460.0,0.00021917,4]
[365836518,1749951040742,-460.0,0.00021917,4]
[365836520,1749951040751,-460.0,0.00021917,4]
[365836522,1749951040760,-460.0,0.00021917,4]
[365836524,1749951040769,-1052.96,0.00021917,4]
[365836526,1749951040779,-400.0,0.00021917,4]
[365836528,1749951040789,-460.0,0.00021917,4]
[365836530,1749951040798,-460.0,0.00021917,4]
[365836532,1749951040807,-460.0,0.00021917,4]
[365836534,1749951040816,-460.0,0.00021917,4]
[365836536,1749951040825,-460.0,0.00021917,4]
[365836538,1749951040834,-460.0,0.00021917,4]
[365836540,1749951040843,-460.0,0.00021917,4]
[365836542,1749951040852,-1024.59,0.00021917,4]
[365836544,1749951040861,-460.0,0.00021917,4]
[365836546,1749951040870,-460.0,0.00021917,4]
[365836549,1749951040880,-460.0,0.00021917,4]
[365836551,1749951040890,-603.02,0.00021917,4]
[365836553,1749951040899,-890.77,0.00021917,4]
[365836555,1749951040910,-460.0,0.00021917,4]
[365836557,1749951040919,-1086.4,0.00021917,4]
[365836558,1749951040928,-460.0,0.00021917,4]
[365836560,1749951040937,-400.09792632,0.00021917,4]
[365836563,1749951040947,-390.0,0.00021917,4]
[365836564,1749951040956,-460.0,0.00021917,4]
[365836567,1749951040965,-486.78,0.00021917,4]
[365836568,1749951040974,-460.0,0.00021917,4]
[365836571,1749951040983,-460.0,0.00021917,4]
[365836573,1749951040992,-460.0,0.00021917,4]
[365836575,1749951041002,-430.0,0.00021917,4]
[365836577,1749951041011,-460.0,0.00021917,4]
[365836579,1749951041020,-460.0,0.00021917,4]
[365836581,1749951041030,-460.0,0.00021917,4]
[365836583,1749951041039,-2396.49,0.00021917,4]
[365836585,1749951041048,-460.0,0.00021917,4]
[365836587,1749951041057,-460.0,0.00021917,4]
[365836589,1749951041066,-460.0,0.00021917,4]
[365836591,1749951041075,-467.39,0.00021917,4]
[365836592,1749951041084,-460.0,0.00021917,4]
[365836595,1749951041093,-494.24,0.00021917,4]
[365836597,1749951041102,-460.0,0.00021917,4]
[365836599,1749951041111,-460.0,0.00021917,4]
[365836601,1749951041120,-1224.38,0.00021917,4]
[365836603,1749951041129,-460.0,0.00021917,4]
[365836605,1749951041138,-171.40210787,0.00021917,4]
[365836607,1749951041148,-359.30674547,0.00021917,4]
[365836609,1749951041156,-460.0,0.00021917,4]
[365836611,1749951041166,-460.0,0.00021917,4]
[365836613,1749951041174,-460.0,0.00021917,4]
[365836615,1749951041184,-460.0,0.00021917,4]
[365836617,1749951041193,-668.24,0.00021917,4]
[365836619,1749951041203,-881.57,0.00021917,4]
[365836621,1749951041212,-440.0,0.00021917,4]
[365836623,1749951041221,-460.0,0.00021917,4]
[365836625,1749951041230,-460.0,0.00021917,4]
[365836627,1749951041240,-460.0,0.00021917,4]
[365836629,1749951041249,-416.02,0.00021917,4]
[365836631,1749951041258,-460.0,0.00021917,4]
[365836633,1749951041267,-462.72127197,0.00021917,4]
[365836635,1749951041276,-460.0,0.00021917,4]
[365836637,1749951041285,-1240.11,0.00021917,4]
[365836639,1749951041294,-2589.49,0.00021917,4]
[365836641,1749951041303,-486.98,0.00021917,4]
[365836643,1749951041312,-473.74361169,0.00021917,4]
[365836645,1749951041321,-208.48793364,0.00021917,4]
[365836647,1749951041330,-1979.79,0.00021917,4]
[365836649,1749951041339,-460.0,0.00021917,4]
[365836651,1749951041349,-534.1,0.00021917,4]
[365836653,1749951041358,-464.90108663,0.00021917,4]
[365836655,1749951041368,-2685.26,0.00021917,4]
[365836657,1749951041377,-460.0,0.00021917,4]
[365836659,1749951041386,-1750.456,0.00021945,2]
[365836661,1749951041395,-336.04,0.00021963,3]
[365836663,1749951041405,-459.0,0.00021966,2]
[365836665,1749951041414,-500.0,0.00021973,2]
[365836667,1749951041423,-156.72713415,0.00021973,2]
[365836669,1749951041432,-500.0,0.00021973,2]
[365836671,1749951041441,-500.0,0.00021973,2]
[365836673,1749951041450,-500.0,0.00021973,2]
[365836675,1749951041459,-500.0,0.00021973,2]
[365836677,1749951041471,-500.0,0.00021973,2]
[365836679,1749951041481,-1845.60310324,0.00022,2]
[365836681,1749951041490,-1884.84917144,0.00022003,6]
[365836683,1749951041499,-1795.94465838,0.00022103,2]
[365836685,1749951041509,-1884.84917144,0.00022107,6]
[365836687,1749951041519,-459.0,0.00022165,2]
[365836689,1749951041528,-438.12804541,0.00022186,2]
[365836692,1749951041538,-500.0,0.0002219,2]
[365836694,1749951041547,-500.0,0.0002219,2]
[365836696,1749951041557,-160.0,0.0002219,2]
[365836698,1749951041566,-18515.65325678,0.00022191,2]
[365836700,1749951041575,-30088.56165356,0.00022191,2]
[365836702,1749951041585,-500.0,0.00022191,4]
[365836704,1749951041594,-460.0,0.00022191,4]
[365836706,1749951041603,-380.0,0.00022191,4]
[365836708,1749951041612,-355.86025775,0.00022191,4]
[365836710,1749951041621,-460.0,0.00022191,4]
[365836712,1749951041630,-227.71046366,0.00022191,4]
[365836714,1749951041639,-460.0,0.00022191,4]
[365836716,1749951041648,-430.0,0.00022191,4]
[365836718,1749951041658,-400.0,0.00022191,4]
[365836720,1749951041667,-350.0,0.00022191,4]
[365836722,1749951041676,-460.0,0.00022191,4]
[365836724,1749951041685,-641.59,0.00022191,4]
[365836725,1749951041695,-460.0,0.00022191,4]
[365836728,1749951041704,-460.0,0.00022191,4]
[365836730,1749951041714,-460.0,0.00022191,4]
[365836731,1749951041723,-370.0,0.00022191,4]
[365836733,1749951041732,-460.0,0.00022191,4]
[365836735,1749951041742,-447.35543612,0.00022191,4]
[365836737,1749951041751,-460.0,0.00022191,4]
[365836740,1749951041761,-370.0,0.00022191,4]
[365836741,1749951041770,-460.0,0.00022191,4]
[365836744,1749951041779,-460.0,0.00022191,4]
[365836746,1749951041790,-460.0,0.00022191,4]
[365836747,1749951041799,-340.44,0.00022191,4]
[365836750,1749951041808,-460.0,0.00022191,4]
[365836752,1749951041817,-460.0,0.00022191,4]
[365836753,1749951041826,-190.99538037,0.00022191,4]
[365836756,1749951041836,-460.0,0.00022191,4]
[365836758,1749951041845,-460.0,0.00022191,4]
[365836760,1749951041855,-797.87,0.00022191,4]
[365836762,1749951041865,-460.0,0.00022191,4]
[365836763,1749951041874,-460.0,0.00022191,4]
[365836765,1749951041883,-460.0,0.00022191,4]
[365836768,1749951041893,-400.0,0.00022191,4]
[365836770,1749951041903,-460.0,0.00022191,4]
[365836772,1749951041912,-578.81,0.00022191,4]
[365836774,1749951041921,-460.0,0.00022191,4]
[365836776,1749951041930,-460.0,0.00022191,4]
[365836778,1749951041939,-460.0,0.00022191,4]
[365836780,1749951041949,-460.0,0.00022191,4]
[365836782,1749951041963,-460.0,0.00022191,4]
[365836785,1749951041976,-679.87,0.00022191,4]
[365836789,1749951042001,-460.0,0.00022191,4]
[365836792,1749951042019,-658.34,0.00022191,4]
[365836794,1749951042032,-1943.26,0.00022191,4]
[365836796,1749951042044,-503.84,0.00022191,4]
[365836799,1749951042057,-460.0,0.00022191,4]
[365836801,1749951042071,-809.14,0.00022191,2]
[365836803,1749951042083,-460.0,0.00022191,4]
[365836806,1749951042096,-460.0,0.00022191,4]
[365836808,1749951042109,-460.0,0.00022191,4]
[365836811,1749951042123,-460.0,0.00022191,4]
[365836813,1749951042138,-546.23,0.00022191,4]
[365836816,1749951042151,-3020.45,0.00022191,4]